[Event "European School-ch 2019"]
[Site "Mamaia"]
[Date "2019.05.31"]
[Round "1.18"]
[White "Nastore, Pavel-Alexandru"]
[Black "Pelling, Kyle"]
[Result "1-0"]
[ECO "B13"]
[WhiteElo "1942"]
[BlackElo "1436"]
[Annotator "NA"]
[PlyCount "81"]
[EventDate "2019.05.31"]
[EventType "swiss"]
[EventCountry "ROU"]
[SourceTitle "playchess.com"]
[Source "ChessBase"]
[SourceQuality "1"]
[TimeControl "40/5400+30:1800+30"]

1. e4 {[%emt 0:00:00]} c6 {[%emt 0:00:00]} 2. d4 {[%emt 0:00:00]} d5 {[%emt 0:00:00]} 3. exd5 {[%emt 0:00:00]} cxd5 {[%emt 0:00:00]} 4. c4 {[%emt 0:00:00]} Nf6 {[%emt 0:00:17]} 5. Nc3 {[%emt 0:00:00]} Nc6 {[%emt 0:02:10]} 6. Nf3 {[%emt 0:00:00]} Bg4 {[%emt 0:01:44]} 7. cxd5 {[%emt 0:00:00]} Nxd5 {[%emt 0:02:01]} 8. Qb3 {[%emt 0:00:02]} Nxc3 {[%emt 0:21:21]} 9. bxc3 {[%emt 0:00:04]} Bxf3 {[%emt 0:07:43]} 10. gxf3 {[%emt 0:00:05]} Qc8 {[%emt 0:14:29]} 11. Rb1 {[%emt 0:01:52]} e6 {[%emt 0:12:05]} 12. Qxb7 {[%emt 0:00:15]} Qxb7 {[%emt 0:00:38]} 13. Rxb7 {[%emt 0:00:03]} Rc8 {[%emt 0:15:36]} 14. Bb5 {[%emt 0:01:07]} Bd6 {[%emt 0:03:02]} 15. Rxa7 {[%emt 0:02:13]} O-O {[%emt 0:10:05]} 16. Bxc6 {[%emt 0:00:58]} Rxc6 {[%emt 0:00:12]} 17. Bd2 {[%emt 0:00:28]} Rb8 {[%emt 0:01:13]} 18. Ke2 {[%emt 0:00:05]} Rc7 {[%emt 0:01:57]} 19. Ra6 {[%emt 0:00:56]} Be7 {[%emt 0:01:23]} 20. Kd3 {[%emt 0:00:04]} Rcb7 {[%emt 0:01:02]} 21. Bf4 {[%emt 0:01:31]} Rd8 {[%emt 0:00:58]} 22. Rc1 {[%emt 0:02:51]} Bf6 {[%emt 0:01:04]} 23. Re1 {[%emt 0:04:58]} Rb5 {[%emt 0:01:29]} 24. a4 {[%emt 0:03:32]} Rbd5 {[%emt 0:00:09]} 25. Kc2 {[%emt 0:00:58]} h6 {[%emt 0:00:50]} 26. Rb6 {[%emt 0:00:42]} Ra8 {[%emt 0:00:35]} 27. Kb3 {[%emt 0:00:38]} Rda5 {[%emt 0:00:22]} 28. Rb8+ {[%emt 0:01:39]} Rxb8+ {[%emt 0:00:15]} 29. Bxb8 {[%emt 0:00:04]} Rf5 {[%emt 0:00:36]} 30. f4 {[%emt 0:01:35]} Rh5 {[%emt 0:00:14]} 31. Bc7 {[%emt 0:01:01]} Kf8 {[%emt 0:00:58]} 32. a5 {[%emt 0:00:32]} Rb5+ {[%emt 0:00:42]} 33. Kc4 {[%emt 0:00:06]} Rb7 {[%emt 0:00:20]} 34. Bb6 {[%emt 0:00:02]} Ke8 {[%emt 0:00:20]} 35. Kb5 {[%emt 0:01:08]} Bd8 {[%emt 0:00:22]} 36. Kc6 {[%emt 0:00:13]} Rb8 {[%emt 0:00:50]} 37. Rb1 {[%emt 0:01:33]} Bxb6 {[%emt 0:00:50]} 38. Rxb6 {[%emt 0:00:08]} Ra8 {[%emt 0:00:08]} 39. a6 {[%emt 0:00:13]} Kd8 {[%emt 0:00:08]} 40. Kb7 {[%emt 0:00:07]} Rc8 {[%emt 0:00:15]} 41. Rd6+ {[%emt 0:18:17] Ra8} 1-0

[Event "European School-ch 2019"]
[Site "Mamaia"]
[Date "2019.05.31"]
[Round "1.19"]
[White "Samunenkov, Ihor"]
[Black "Shek, Daniel"]
[Result "1-0"]
[ECO "A45"]
[WhiteElo "1972"]
[BlackElo "1415"]
[Annotator "NA"]
[PlyCount "45"]
[EventDate "2019.05.31"]
[EventType "swiss"]
[EventCountry "ROU"]
[SourceTitle "playchess.com"]
[Source "ChessBase"]
[SourceQuality "1"]
[TimeControl "40/5400+30:1800+30"]

1. d4 {[%emt 0:00:00]} Nf6 {[%emt 0:00:00]} 2. g3 {[%emt 0:00:00]} g6 {[%emt 0:00:07]} 3. Bg2 {[%emt 0:00:00]} Bg7 {[%emt 0:00:10]} 4. e4 {[%emt 0:00:04]} d6 {[%emt 0:00:33]} 5. Nc3 {[%emt 0:00:08]} O-O {[%emt 0:00:34]} 6. Nge2 {[%emt 0:00:06]} c5 {[%emt 0:01:25]} 7. dxc5 {[%emt 0:00:20]} dxc5 {[%emt 0:00:28]} 8. Qxd8 {[%emt 0:00:08]} Rxd8 {[%emt 0:00:13]} 9. e5 {[%emt 0:00:07]} Ne8 {[%emt 0:01:16]} 10. f4 {[%emt 0:01:18]} Nc7 {[%emt 0:02:30]} 11. Bd2 {[%emt 0:04:27]} e6 {[%emt 0:01:49]} 12. O-O-O {[%emt 0:00:37]} Nc6 {[%emt 0:06:55]} 13. Be3 {[%emt 0:04:08]} Na6 {[%emt 0:11:28]} 14. Rxd8+ {[%emt 0:05:37]} Nxd8 {[%emt 0:00:08]} 15. Rd1 {[%emt 0:00:14]} Nc6 {[%emt 0:02:57]} 16. Ne4 {[%emt 0:04:22]} Bf8 {[%emt 0:14:29]} 17. Nd6 {[%emt 0:00:51]} Bxd6 {[%emt 0:00:42]} 18. Rxd6 {[%emt 0:00:35]} c4 {[%emt 0:05:55]} 19. Nc3 {[%emt 0:04:28]} Nab4 {[%emt 0:01:44]} 20. a3 {[%emt 0:01:53]} Na6 {[%emt 0:00:34]} 21. Bxc6 {[%emt 0:01:16]} bxc6 {[%emt 0:00:09]} 22. Rxc6 {[%emt 0:00:05]} Bb7 {[%emt 0:01:12]} 23. Rxc4 {[%emt 0:00:46]} 1-0

[Event "European School-ch 2019"]
[Site "Mamaia"]
[Date "2019.05.31"]
[Round "1.20"]
[White "Monga, Kanav"]
[Black "Cnejev, Vladimir-Alexandru"]
[Result "0-1"]
[ECO "D00"]
[WhiteElo "1386"]
[BlackElo "1970"]
[Annotator "NA"]
[PlyCount "76"]
[EventDate "2019.05.31"]
[EventType "swiss"]
[EventCountry "ROU"]
[SourceTitle "playchess.com"]
[Source "ChessBase"]
[SourceQuality "1"]
[TimeControl "40/5400+30:1800+30"]

1. d4 {[%emt 0:00:00]} d5 {[%emt 0:00:00]} 2. Bf4 {[%emt 0:00:00]} Nf6 {[%emt 0:00:00]} 3. e3 {[%emt 0:00:23]} e6 {[%emt 0:00:00]} 4. c3 {[%emt 0:00:26]} c5 {[%emt 0:00:01]} 5. Nd2 {[%emt 0:00:10]} Nc6 {[%emt 0:00:06]} 6. Ngf3 {[%emt 0:00:57]} Bd6 {[%emt 0:00:08]} 7. Bg3 {[%emt 0:00:10]} O-O {[%emt 0:00:08]} 8. Bd3 {[%emt 0:01:10]} b6 {[%emt 0:01:51]} 9. Ne5 {[%emt 0:00:33]} Bb7 {[%emt 0:01:00]} 10. O-O {[%emt 0:01:03]} Qc7 {[%emt 0:02:15]} 11. f4 {[%emt 0:00:25]} Ne7 {[%emt 0:01:58]} 12. Qf3 {[%emt 0:09:28]} Nf5 {[%emt 0:01:41]} 13. Bf2 {[%emt 0:06:16]} Be7 {[%emt 0:00:14]} 14. Rfe1 {[%emt 0:03:40]} Nd6 {[%emt 0:04:00]} 15. Bh4 {[%emt 0:23:45]} Nfe4 {[%emt 0:00:45]} 16. Bxe7 {[%emt 0:00:23]} Qxe7 {[%emt 0:01:00]} 17. Qh3 {[%emt 0:01:43]} a5 {[%emt 0:12:36]} 18. Nf1 {[%emt 0:04:11]} c4 {[%emt 0:11:33]} 19. Bc2 {[%emt 0:00:21]} b5 {[%emt 0:00:11]} 20. Ng3 {[%emt 0:00:27]} f6 {[%emt 0:02:09]} 21. Nf3 {[%emt 0:00:36]} b4 {[%emt 0:02:40]} 22. Nd2 {[%emt 0:02:05]} bxc3 {[%emt 0:05:33]} 23. bxc3 {[%emt 0:00:19]} f5 {[%emt 0:00:20]} 24. Ndxe4 {[%emt 0:01:10]} dxe4 {[%emt 0:00:57]} 25. Red1 {[%emt 0:01:21]} Nb5 {[%emt 0:09:58]} 26. Ne2 {[%emt 0:01:06]} Qa3 {[%emt 0:04:15]} 27. Rdc1 {[%emt 0:00:55]} Rab8 {[%emt 0:02:26]} 28. Rab1 {[%emt 0:00:39]} Bc6 {[%emt 0:03:49]} 29. Bd1 {[%emt 0:01:22]} Nc7 {[%emt 0:04:57]} 30. Rxb8 {[%emt 0:08:22]} Rxb8 {[%emt 0:00:01]} 31. Qh4 {[%emt 0:00:33]} Nd5 {[%emt 0:01:39]} 32. Qg3 {[%emt 0:11:36]} Rb2 {[%emt 0:02:11]} 33. Qg5 {[%emt 0:00:48]} Rxe2 {[%emt 0:02:58]} 34. Bxe2 {[%emt 0:01:06]} Qxc1+ {[%emt 0:00:17]} 35. Kf2 {[%emt 0:00:24]} Qxe3+ {[%emt 0:00:04]} 36. Kf1 {[%emt 0:00:11]} Nxf4 {[%emt 0:01:58]} 37. Qd8+ {[%emt 0:00:23]} Kf7 {[%emt 0:00:05]} 38. Qc7+ {[%emt 0:00:21]} Kg6 0-1

[Event "European School-ch 2019"]
[Site "Mamaia"]
[Date "2019.05.31"]
[Round "1.21"]
[White "Magold, Filip"]
[Black "Doychev, Ivan"]
[Result "1-0"]
[ECO "B44"]
[WhiteElo "1884"]
[BlackElo "1380"]
[Annotator "NA"]
[PlyCount "55"]
[EventDate "2019.05.31"]
[EventType "swiss"]
[EventCountry "ROU"]
[SourceTitle "playchess.com"]
[Source "ChessBase"]
[SourceQuality "1"]
[TimeControl "40/5400+30:1800+30"]

1. e4 c5 2. Nf3 e6 3. d4 {[%emt 0:00:00]} cxd4 {[%emt 0:00:07]} 4. Nxd4 {[%emt 0:00:00]} Nc6 {[%emt 0:00:12]} 5. Nxc6 {[%emt 0:00:22]} bxc6 {[%emt 0:00:10]} 6. Bd3 {[%emt 0:00:13]} d6 {[%emt 0:00:27]} 7. Nd2 {[%emt 0:00:43]} Nf6 {[%emt 0:00:27]} 8. Qe2 {[%emt 0:00:52]} Qc7 {[%emt 0:00:57]} 9. O-O {[%emt 0:00:59]} Be7 {[%emt 0:00:24]} 10. Nc4 {[%emt 0:01:48]} d5 {[%emt 0:11:29]} 11. exd5 {[%emt 0:03:50]} exd5 {[%emt 0:00:31]} 12. Ne5 {[%emt 0:09:08]} O-O {[%emt 0:00:29]} 13. Bf4 {[%emt 0:02:50]} Bd6 {[%emt 0:00:31]} 14. Rae1 {[%emt 0:02:11]} Re8 {[%emt 0:01:12]} 15. h3 {[%emt 0:09:13]} Nd7 {[%emt 0:02:02]} 16. Bxh7+ {[%emt 0:00:24]} Kxh7 {[%emt 0:01:39]} 17. Qh5+ {[%emt 0:00:14]} Kg8 {[%emt 0:00:18]} 18. Qxf7+ {[%emt 0:00:04]} Kh7 {[%emt 0:00:40]} 19. Qg6+ {[%emt 0:00:11]} Kg8 {[%emt 0:00:20]} 20. Qxe8+ {[%emt 0:00:05]} Kh7 {[%emt 0:00:12]} 21. Qg6+ {[%emt 0:01:01]} Kg8 {[%emt 0:00:20]} 22. Nxd7 {[%emt 0:00:25]} Bxd7 {[%emt 0:00:23]} 23. Bxd6 {[%emt 0:00:07]} Qd8 {[%emt 0:00:21]} 24. Re7 {[%emt 0:00:05]} Qf8 {[%emt 0:00:55]} 25. Rxd7 {[%emt 0:00:14]} Qf6 {[%emt 0:00:28]} 26. Qg3 {[%emt 0:00:15]} Re8 {[%emt 0:00:27]} 27. Rd1 {[%emt 0:01:14]} Qxb2 {[%emt 0:00:59]} 28. c3 1-0

[Event "European School-ch 2019"]
[Site "Mamaia"]
[Date "2019.05.31"]
[Round "1.22"]
[White "Esiri, Jack"]
[Black "Gurel, Ediz"]
[Result "0-1"]
[ECO "B43"]
[WhiteElo "1365"]
[BlackElo "1858"]
[Annotator "NA"]
[PlyCount "66"]
[EventDate "2019.05.31"]
[EventType "swiss"]
[EventCountry "ROU"]
[SourceTitle "playchess.com"]
[Source "ChessBase"]
[SourceQuality "1"]
[TimeControl "40/5400+30:1800+30"]

1. e4 {[%emt 0:00:00]} c5 {[%emt 0:00:00]} 2. Nf3 {[%emt 0:00:00]} a6 {[%emt 0:00:40]} 3. d4 {[%emt 0:00:07]} cxd4 {[%emt 0:00:10]} 4. Nxd4 {[%emt 0:00:07]} e6 {[%emt 0:00:30]} 5. Nc3 {[%emt 0:00:16]} g6 {[%emt 0:01:30]} 6. Be3 {[%emt 0:01:11]} Bg7 {[%emt 0:00:42]} 7. Bc4 {[%emt 0:01:35]} Ne7 {[%emt 0:01:36]} 8. Bb3 {[%emt 0:01:46]} O-O {[%emt 0:00:49]} 9. O-O {[%emt 0:01:13]} d6 {[%emt 0:05:25]} 10. f4 {[%emt 0:02:02]} Nbc6 {[%emt 0:02:14]} 11. Rb1 {[%emt 0:02:20]} Na5 {[%emt 0:02:07]} 12. Qe1 {[%emt 0:04:22]} Nxb3 {[%emt 0:02:32]} 13. Nxb3 {[%emt 0:00:19]} Qc7 {[%emt 0:01:30]} 14. Qh4 {[%emt 0:01:22]} f5 {[%emt 0:02:23]} 15. Bd4 {[%emt 0:04:03]} fxe4 {[%emt 0:05:49]} 16. g4 {[%emt 0:05:35]} d5 {[%emt 0:02:18]} 17. Be5 {[%emt 0:04:09]} Qd8 {[%emt 0:01:36]} 18. Bxg7 {[%emt 0:06:15]} Kxg7 {[%emt 0:00:08]} 19. Rbd1 {[%emt 0:00:58]} Qc7 {[%emt 0:03:10]} 20. Nd4 {[%emt 0:03:03]} Rf7 {[%emt 0:05:53]} 21. Rd2 {[%emt 0:03:34]} Bd7 {[%emt 0:02:22]} 22. Rg2 {[%emt 0:08:06]} Raf8 {[%emt 0:02:52]} 23. Nd1 {[%emt 0:08:10]} e5 {[%emt 0:01:19]} 24. Nf5+ {[%emt 0:06:04]} gxf5 {[%emt 0:01:11]} 25. gxf5+ {[%emt 0:00:52]} Kh8 {[%emt 0:00:05]} 26. f6 {[%emt 0:02:10]} Rxf6 {[%emt 0:00:45]} 27. Qg5 {[%emt 0:00:08]} Rg6 {[%emt 0:00:06]} 28. Qxe7 {[%emt 0:01:03]} Rxg2+ {[%emt 0:00:06]} 29. Kh1 {[%emt 0:00:10]} Rgg8 {[%emt 0:00:49]} 30. Rg1 {[%emt 0:00:47]} Rxg1+ {[%emt 0:00:18]} 31. Kxg1 {[%emt 0:00:11]} Rg8+ {[%emt 0:00:03]} 32. Kh1 {[%emt 0:00:09]} Bg4 {[%emt 0:00:30]} 33. Qf6+ {[%emt 0:01:22]} Qg7 {[%emt 0:00:06]} 0-1

[Event "European School-ch 2019"]
[Site "Mamaia"]
[Date "2019.05.31"]
[Round "1.23"]
[White "Cosac, Robert-Mihai"]
[Black "Popescu, Stefan-Adrian"]
[Result "1/2-1/2"]
[ECO "D31"]
[WhiteElo "1795"]
[BlackElo "1333"]
[Annotator "NA"]
[PlyCount "90"]
[EventDate "2019.05.31"]
[EventType "swiss"]
[EventCountry "ROU"]
[SourceTitle "playchess.com"]
[Source "ChessBase"]
[SourceQuality "1"]
[TimeControl "40/5400+30:1800+30"]

1. d4 {[%emt 0:00:00]} d5 {[%emt 0:00:00]} 2. c4 {[%emt 0:00:00]} e6 {[%emt 0:00:34]} 3. Nc3 {[%emt 0:00:09]} c6 {[%emt 0:00:45]} 4. Bf4 {[%emt 0:00:23]} Bd6 {[%emt 0:01:43]} 5. Bxd6 {[%emt 0:01:28]} Qxd6 {[%emt 0:00:11]} 6. Nf3 {[%emt 0:00:56]} Nd7 {[%emt 0:02:30]} 7. e3 {[%emt 0:00:43]} f5 {[%emt 0:00:25]} 8. cxd5 {[%emt 0:01:51]} exd5 {[%emt 0:00:19]} 9. Bd3 {[%emt 0:01:39]} g6 {[%emt 0:05:01]} 10. Rc1 {[%emt 0:01:51]} Ngf6 {[%emt 0:00:18]} 11. O-O {[%emt 0:03:20]} O-O {[%emt 0:00:18]} 12. Qc2 {[%emt 0:09:49]} Ne4 {[%emt 0:00:49]} 13. Rfd1 {[%emt 0:01:07]} Qe7 {[%emt 0:07:58]} 14. a3 {[%emt 0:06:00]} Re8 {[%emt 0:08:46]} 15. Bxe4 {[%emt 0:07:02]} fxe4 {[%emt 0:00:43]} 16. Nd2 {[%emt 0:00:40]} Qg5 {[%emt 0:00:14]} 17. Nf1 {[%emt 0:02:36]} Rf8 {[%emt 0:00:36]} 18. Ng3 {[%emt 0:01:11]} h5 {[%emt 0:00:47]} 19. Qb3 {[%emt 0:05:36]} Kh7 {[%emt 0:00:46]} 20. Qb4 {[%emt 0:03:47]} Rf7 {[%emt 0:04:31]} 21. Nge2 {[%emt 0:04:11]} Nb6 {[%emt 0:02:22]} 22. Nf4 {[%emt 0:01:20]} Bg4 {[%emt 0:01:22]} 23. Re1 {[%emt 0:03:47]} Bf3 {[%emt 0:04:43]} 24. g3 {[%emt 0:01:48]} Qg4 {[%emt 0:04:05]} 25. h3 {[%emt 0:03:04]} Qd7 {[%emt 0:00:26]} 26. Kh2 {[%emt 0:01:50]} g5 {[%emt 0:01:22]} 27. Nfe2 {[%emt 0:02:20]} Qe6 {[%emt 0:01:38]} 28. Ng1 {[%emt 0:01:17]} Raf8 {[%emt 0:01:00]} 29. Nxf3 {[%emt 0:01:52]} Rxf3 {[%emt 0:00:10]} 30. Nd1 {[%emt 0:00:27]} Qf6 {[%emt 0:02:04]} 31. Rc2 {[%emt 0:01:48]} Qe6 {[%emt 0:01:09]} 32. Qa5 {[%emt 0:02:19]} Nc8 {[%emt 0:06:30]} 33. Qb4 {[%emt 0:01:37]} R8f7 {[%emt 0:00:19]} 34. a4 {[%emt 0:02:17]} Nd6 {[%emt 0:07:55]} 35. Qc5 {[%emt 0:01:34]} a6 {[%emt 0:00:20]} 36. Qc3 {[%emt 0:02:56]} Ne8 {[%emt 0:02:16]} 37. Rg1 {[%emt 0:04:15]} h4 {[%emt 0:01:15]} 38. g4 {[%emt 0:00:21]} Ng7 {[%emt 0:01:22]} 39. b4 {[%emt 0:01:01]} Qd6+ {[%emt 0:01:33]} 40. Kg2 {[%emt 0:00:13]} Ne6 {[%emt 0:00:36]} 41. Qe1 {[%emt 0:30:58]} Qe7 {[%emt 0:31:30]} 42. Qe2 {[%emt 0:01:21]} Qd6 {[%emt 0:01:20]} 43. Qe1 {[%emt 0:00:37]} Qe7 {[%emt 0:00:51]} 44. Rb2 {[%emt 0:00:58]} Qc7 {[%emt 0:00:25]} 45. Rc2 {[%emt 0:00:52]} Qd6 {[%emt 0:00:08]} 1/2-1/2

[Event "European School-ch 2019"]
[Site "Mamaia"]
[Date "2019.05.31"]
[Round "1.24"]
[White "Gabulov, Ilkin"]
[Black "Nemsadze, Daviti"]
[Result "0-1"]
[ECO "A42"]
[WhiteElo "1326"]
[BlackElo "1763"]
[Annotator "NA"]
[PlyCount "72"]
[EventDate "2019.05.31"]
[EventType "swiss"]
[EventCountry "ROU"]
[SourceTitle "playchess.com"]
[Source "ChessBase"]
[SourceQuality "1"]
[TimeControl "40/5400+30:1800+30"]

1. d4 {[%emt 0:00:00]} g6 {[%emt 0:00:00]} 2. c4 {[%emt 0:00:00]} Bg7 {[%emt 0:00:00]} 3. Nc3 {[%emt 0:00:27]} d6 {[%emt 0:00:00]} 4. e4 {[%emt 0:00:22]} Nc6 {[%emt 0:01:11]} 5. Be3 {[%emt 0:05:12]} e5 {[%emt 0:00:08]} 6. d5 {[%emt 0:03:25]} Nd4 {[%emt 0:00:05]} 7. Nf3 {[%emt 0:02:43]} Bg4 {[%emt 0:00:04]} 8. Be2 {[%emt 0:00:18]} Bxf3 {[%emt 0:00:05]} 9. Bxf3 {[%emt 0:00:16]} c5 {[%emt 0:00:36]} 10. O-O {[%emt 0:00:36]} Ne7 {[%emt 0:01:55]} 11. Qa4+ {[%emt 0:18:48]} Kf8 {[%emt 0:05:28]} 12. Be2 {[%emt 0:06:35]} f5 {[%emt 0:11:04]} 13. f4 {[%emt 0:10:10]} Bh6 {[%emt 0:02:11]} 14. g3 {[%emt 0:06:34]} Kg7 {[%emt 0:04:39]} 15. Qd1 {[%emt 0:02:39]} fxe4 {[%emt 0:18:28]} 16. Nxe4 {[%emt 0:02:31]} Nef5 {[%emt 0:02:23]} 17. Bd2 {[%emt 0:02:16]} Qe7 {[%emt 0:03:05]} 18. Bd3 {[%emt 0:08:39]} exf4 {[%emt 0:04:49]} 19. Bxf4 {[%emt 0:02:48]} Bxf4 {[%emt 0:00:11]} 20. Rxf4 {[%emt 0:00:34]} Rhf8 {[%emt 0:00:03]} 21. Qf1 {[%emt 0:05:53]} Ne3 {[%emt 0:01:35]} 22. Qf2 {[%emt 0:02:20]} Ng4 {[%emt 0:00:07]} 23. Qf1 {[%emt 0:03:51]} Rxf4 {[%emt 0:00:29]} 24. Qxf4 {[%emt 0:00:21]} Ne5 {[%emt 0:00:04]} 25. Qe3 {[%emt 0:01:13]} Ndf3+ {[%emt 0:00:37]} 26. Kg2 {[%emt 0:01:10]} Nxh2 {[%emt 0:05:25]} 27. Rh1 {[%emt 0:02:29]} Nhg4 {[%emt 0:00:16]} 28. Qd2 {[%emt 0:00:58]} Rf8 {[%emt 0:00:16]} 29. b3 {[%emt 0:02:25]} h5 {[%emt 0:04:55]} 30. Bc2 {[%emt 0:01:28]} Qf7 {[%emt 0:01:00]} 31. Bd1 {[%emt 0:01:19]} Qe7 {[%emt 0:10:30]} 32. Qc3 {[%emt 0:02:40]} Kg8 {[%emt 0:00:49]} 33. Re1 {[%emt 0:02:12]} Qd7 {[%emt 0:02:25]} 34. a3 {[%emt 0:01:00]} Qf5 {[%emt 0:02:20]} 35. Qa1 {[%emt 0:02:41]} Nf2 {[%emt 0:00:13]} 36. Nc3 {[%emt 0:00:27]} Qh3+ {[%emt 0:00:02] Nb1} 0-1

[Event "European School-ch 2019"]
[Site "Mamaia"]
[Date "2019.05.31"]
[Round "1.25"]
[White "Kolesov, Gordey"]
[Black "Gardiner, Ethan"]
[Result "1-0"]
[ECO "E49"]
[WhiteElo "1745"]
[BlackElo "1317"]
[Annotator "NA"]
[PlyCount "49"]
[EventDate "2019.05.31"]
[EventType "swiss"]
[EventCountry "ROU"]
[SourceTitle "playchess.com"]
[Source "ChessBase"]
[SourceQuality "1"]
[TimeControl "40/5400+30:1800+30"]

1. d4 {[%emt 0:00:00]} Nf6 {[%emt 0:00:00]} 2. c4 {[%emt 0:00:00]} e6 {[%emt 0:00:00]} 3. Nc3 {[%emt 0:00:00]} Bb4 {[%emt 0:00:00]} 4. e3 {[%emt 0:00:00]} O-O {[%emt 0:00:04]} 5. Bd3 {[%emt 0:00:05]} d5 {[%emt 0:00:57]} 6. a3 {[%emt 0:00:24]} Bxc3+ {[%emt 0:00:07]} 7. bxc3 {[%emt 0:00:05]} c5 {[%emt 0:00:33]} 8. cxd5 {[%emt 0:00:34]} Nxd5 {[%emt 0:00:20]} 9. Nf3 {[%emt 0:00:40]} Nc6 {[%emt 0:01:59]} 10. Qc2 {[%emt 0:04:58]} h6 {[%emt 0:00:45]} 11. O-O {[%emt 0:01:35]} Bd7 {[%emt 0:07:36]} 12. e4 {[%emt 0:08:07]} Nf6 {[%emt 0:00:38]} 13. Rd1 {[%emt 0:04:20]} cxd4 {[%emt 0:02:21]} 14. cxd4 {[%emt 0:00:13]} Rc8 {[%emt 0:03:51]} 15. Qb2 {[%emt 0:04:00]} Qc7 {[%emt 0:05:02]} 16. g3 {[%emt 0:07:21]} b6 {[%emt 0:02:21]} 17. Ba6 {[%emt 0:04:33]} Rce8 {[%emt 0:01:30]} 18. Bf4 {[%emt 0:00:23]} Qd8 {[%emt 0:00:22]} 19. Bd6 {[%emt 0:05:15]} Nxe4 {[%emt 0:03:29]} 20. Bxf8 {[%emt 0:00:10]} Rxf8 {[%emt 0:00:07]} 21. Rac1 {[%emt 0:01:25]} Qf6 {[%emt 0:04:16]} 22. Qe2 {[%emt 0:00:14]} Nd6 {[%emt 0:00:26]} 23. Ne5 {[%emt 0:00:40]} Nb8 {[%emt 0:01:29]} 24. Rc7 {[%emt 0:03:09]} Nxa6 {[%emt 0:01:20]} 25. Rxd7 {[%emt 0:00:39]} 1-0

[Event "European School-ch 2019"]
[Site "Mamaia"]
[Date "2019.05.31"]
[Round "1.26"]
[White "State-Ungureanu, Nicolae-Vlad"]
[Black "Saioc, David"]
[Result "1/2-1/2"]
[ECO "C02"]
[WhiteElo "1317"]
[BlackElo "1744"]
[Annotator "NA"]
[PlyCount "100"]
[EventDate "2019.05.31"]
[EventType "swiss"]
[EventCountry "ROU"]
[SourceTitle "playchess.com"]
[Source "ChessBase"]
[SourceQuality "1"]
[TimeControl "40/5400+30:1800+30"]

1. e4 {[%emt 0:00:00]} e6 {[%emt 0:00:08]} 2. d4 {[%emt 0:00:00]} d5 {[%emt 0:00:10]} 3. e5 {[%emt 0:00:13]} c5 {[%emt 0:00:07]} 4. c3 {[%emt 0:04:23]} Nc6 {[%emt 0:00:10]} 5. Nf3 {[%emt 0:00:44]} Qb6 {[%emt 0:00:20]} 6. Be2 {[%emt 0:05:32]} Nge7 {[%emt 0:05:19]} 7. Na3 {[%emt 0:03:27]} Nf5 {[%emt 0:01:48]} 8. Nc2 {[%emt 0:00:21]} cxd4 {[%emt 0:01:22]} 9. cxd4 {[%emt 0:00:29]} Nb4 {[%emt 0:01:38]} 10. Nxb4 {[%emt 0:01:07]} Bxb4+ {[%emt 0:00:07]} 11. Bd2 {[%emt 0:00:23]} Nxd4 {[%emt 0:00:14]} 12. Nxd4 {[%emt 0:01:26]} Qxd4 {[%emt 0:00:09]} 13. Qa4+ {[%emt 0:00:06]} Bd7 {[%emt 0:00:43]} 14. Qxb4 {[%emt 0:00:07]} Qxe5 {[%emt 0:00:06]} 15. Bc3 {[%emt 0:00:50]} Qg5 {[%emt 0:29:56]} 16. Qxb7 {[%emt 0:01:44]} Rc8 {[%emt 0:02:10]} 17. Bb5 {[%emt 0:00:55]} Qd8 {[%emt 0:05:35]} 18. Bxd7+ {[%emt 0:01:30]} Qxd7 {[%emt 0:00:06]} 19. Qxd7+ {[%emt 0:00:06]} Kxd7 {[%emt 0:00:05]} 20. Bxg7 {[%emt 0:01:16]} Rhg8 {[%emt 0:00:08]} 21. Bd4 {[%emt 0:00:07]} Rxg2 {[%emt 0:00:23]} 22. Kf1 {[%emt 0:00:36]} Rg4 {[%emt 0:02:22]} 23. Bxa7 {[%emt 0:00:48]} d4 {[%emt 0:01:58]} 24. Rg1 {[%emt 0:06:01]} Rf4 {[%emt 0:02:26]} 25. Rg2 {[%emt 0:05:17]} e5 {[%emt 0:03:31]} 26. Re1 {[%emt 0:06:56]} Kd6 {[%emt 0:02:15]} 27. b4 {[%emt 0:02:58]} Ra8 {[%emt 0:01:14]} 28. Bc5+ {[%emt 0:00:10]} Kd5 {[%emt 0:00:04]} 29. Re2 {[%emt 0:01:03]} e4 {[%emt 0:03:40]} 30. Ke1 {[%emt 0:02:10]} d3 {[%emt 0:04:02]} 31. Rd2 {[%emt 0:01:23]} Rf6 {[%emt 0:03:48]} 32. Rg5+ {[%emt 0:00:44]} Kc4 {[%emt 0:00:47]} 33. Rg4 {[%emt 0:01:05]} Kd5 {[%emt 0:01:35]} 34. Rg5+ {[%emt 0:00:45]} Kc4 {[%emt 0:00:05]} 35. Re5 {[%emt 0:00:20]} Rf4 {[%emt 0:00:56]} 36. Rh5 {[%emt 0:00:49]} Rg8 {[%emt 0:00:11]} 37. Kf1 {[%emt 0:02:29]} Rfg4 {[%emt 0:25:05]} 38. f3 {[%emt 0:00:28]} Rf4 {[%emt 0:00:33]} 39. Rh3 {[%emt 0:01:00]} Rg6 {[%emt 0:01:22]} 40. Kf2 {[%emt 0:00:58]} Rgf6 {[%emt 0:00:34]} 41. Ke3 {[%emt 0:30:27]} Rxf3+ {[%emt 0:31:38]} 42. Rxf3 {[%emt 0:00:13]} Rxf3+ {[%emt 0:00:08]} 43. Kxe4 {[%emt 0:00:21]} Rh3 {[%emt 0:00:10]} 44. a4 {[%emt 0:00:51]} Kc3 {[%emt 0:01:01]} 45. Be3 {[%emt 0:10:44]} Rh4+ {[%emt 0:00:26]} 46. Kf5 {[%emt 0:02:03]} Rxb4 {[%emt 0:00:00]} 47. Ra2 {[%emt 0:00:00]} Kb3 {[%emt 0:00:00]} 48. Rd2 {[%emt 0:00:00]} Kc3 49. Kf6 Rxa4 50. Kxf7 Rh4 1/2-1/2

[Event "European School-ch 2019"]
[Site "Mamaia"]
[Date "2019.05.31"]
[Round "1.27"]
[White "Krawczyk, Flawian"]
[Black "Hoshor, Mark T"]
[Result "1-0"]
[ECO "B27"]
[WhiteElo "1741"]
[BlackElo "2066"]
[Annotator "NA"]
[PlyCount "59"]
[EventDate "2019.05.31"]
[EventType "swiss"]
[EventCountry "ROU"]
[SourceTitle "playchess.com"]
[Source "ChessBase"]
[SourceQuality "1"]
[TimeControl "40/5400+30:1800+30"]

1. e4 {[%emt 0:00:00]} c5 {[%emt 0:00:00]} 2. Nf3 {[%emt 0:00:00]} g6 {[%emt 0:00:00]} 3. c3 {[%emt 0:00:01]} Bg7 {[%emt 0:00:09]} 4. d4 {[%emt 0:00:20]} cxd4 {[%emt 0:01:03]} 5. cxd4 {[%emt 0:00:08]} d6 {[%emt 0:00:43]} 6. Be2 {[%emt 0:01:57]} Nf6 {[%emt 0:02:56]} 7. Nc3 {[%emt 0:00:13]} O-O {[%emt 0:00:07]} 8. O-O {[%emt 0:00:07]} Nc6 {[%emt 0:02:30]} 9. h3 {[%emt 0:01:58]} d5 {[%emt 0:01:10]} 10. e5 {[%emt 0:01:27]} Ne4 {[%emt 0:00:20]} 11. Be3 {[%emt 0:00:31]} f5 {[%emt 0:05:10]} 12. Nxe4 {[%emt 0:05:42]} dxe4 {[%emt 0:01:04]} 13. Bc4+ {[%emt 0:05:25]} Kh8 {[%emt 0:01:50]} 14. Ng5 {[%emt 0:00:09]} Qe8 {[%emt 0:03:59]} 15. e6 {[%emt 0:02:38]} f4 {[%emt 0:02:42]} 16. Nf7+ {[%emt 0:01:45]} Kg8 {[%emt 0:00:16]} 17. Bxf4 {[%emt 0:00:41]} Nxd4 {[%emt 0:00:40]} 18. Qg4 {[%emt 0:01:22]} Qc6 {[%emt 0:02:02]} 19. Rac1 {[%emt 0:04:54]} Bxe6 {[%emt 0:02:30]} 20. Nh6+ {[%emt 0:01:50]} Kh8 {[%emt 0:00:20]} 21. Bxe6 {[%emt 0:02:29]} Qxe6 {[%emt 0:01:22]} 22. Qxe6 {[%emt 0:00:24]} Nxe6 {[%emt 0:00:04]} 23. Be3 {[%emt 0:01:01]} Bxb2 {[%emt 0:00:52]} 24. Rc4 {[%emt 0:00:46]} Nf4 {[%emt 0:03:59]} 25. Rxe4 {[%emt 0:01:05]} Ne2+ {[%emt 0:00:23]} 26. Kh2 {[%emt 0:00:07]} e5 {[%emt 0:02:14]} 27. Bc5 {[%emt 0:01:19]} Nc3 {[%emt 0:03:06]} 28. Rb4 {[%emt 0:00:47]} Rfc8 {[%emt 0:04:17]} 29. Bd6 {[%emt 0:00:03]} Kg7 {[%emt 0:05:13]} 30. Ng4 {[%emt 0:00:08]} 1-0